bitfinex/quotes_SOLUSD_20250920
["timestamp","ask_amount","ask_price","bid_price","bid_amount"]
[1758390081577,15.89651466,239.72,239.71,0.81]
[1758390082656,15.89651466,239.72,239.71,0.1]
[1758390084459,8.93153597,239.72,239.71,0.81]
[1758390086083,13.10306942,239.72,239.71,0.81]
[1758390086376,13.10306942,239.72,239.71,0.78]
[1758390087467,13.10306942,239.72,239.71,0.1]
[1758390087671,8.93153597,239.72,239.71,0.78]
[1758390090782,13.10306942,239.72,239.71,0.78]
[1758390091992,13.10306942,239.72,239.71,0.1]
[1758390092489,18.75472291,239.72,239.71,0.1]
[1758390092659,18.16472291,239.72,239.71,0.1]
[1758390093383,15.88905415,239.72,239.71,0.78]
[1758390096688,15.88905415,239.72,239.71,0.1]
[1758390106102,16.47905415,239.72,239.71,0.1]
[1758390106482,15.88905415,239.72,239.71,0.1]
[1758390107206,18.75472291,239.72,239.71,0.1]
[1758390108401,21.85733132,239.72,239.71,0.1]
[1758390109009,18.75472291,239.72,239.71,0.1]
[1758390109203,21.85785109,239.72,239.71,0.1]
[1758390109686,21.26785109,239.72,239.71,0.1]
[1758390113818,20.44985573,239.72,239.71,0.1]
[1758390116514,18.99218233,239.72,239.71,0.1]
[1758390116706,20.44985573,239.72,239.71,0.1]
[1758390122717,24.52045735,239.72,239.71,1e-08]
[1758390124425,31.46868936,239.72,239.61,0.1]
[1758390124598,1.4576734,239.67,239.62,0.71]
[1758390124914,2.78598473,239.66,239.62,0.71]
[1758390125112,2.78598473,239.65,239.62,0.71]
[1758390125415,2.78912261,239.66,239.62,2.1676734]
[1758390125618,4.17377823,239.65,239.63,0.71]
[1758390127234,8.34654705,239.65,239.63,0.71]
[1758390127698,4.17276882,239.65,239.63,0.71]
[1758390127900,1.67311513,239.64,239.63,0.71]
[1758390129027,5.84604118,239.64,239.63,0.71]
[1758390131020,5.84604118,239.64,239.62,0.71]
[1758390131316,1.4576734,239.63,239.61,0.1]
[1758390131524,1.4576734,239.62,239.61,0.1]
[1758390132043,3.13106851,239.62,239.61,0.1]
[1758390132199,5.91819977,239.62,239.61,0.1]
[1758390132500,3.13106851,239.62,239.61,0.1]
[1758390132701,5.91819977,239.62,239.61,0.1]
[1758390132899,7.30434286,239.62,239.61,0.1]
[1758390133094,10.09147412,239.62,239.61,0.1]
[1758390135398,10.68147412,239.62,239.61,0.1]
[1758390135609,10.09147412,239.62,239.61,0.1]
[1758390139224,7.30434286,239.62,239.61,0.1]
[1758390139930,10.08452012,239.62,239.61,0.1]
[1758390141155,8.62684672,239.62,239.61,0.1]
[1758390141445,5.84666946,239.62,239.61,0.1]
[1758390150336,5.84666946,239.62,239.61,0.78]
[1758390151425,5.84666946,239.62,239.61,0.1]
[1758390156529,5.84666946,239.62,239.61,0.78]
[1758390158547,5.84666946,239.62,239.61,0.1]
[1758390159555,5.84666946,239.62,239.61,0.78]
[1758390160448,8.62822119,239.62,239.61,0.78]
[1758390160658,5.84666946,239.62,239.61,0.78]
[1758390160833,5.84666946,239.62,239.61,0.1]
[1758390161034,10.0858938,239.62,239.61,0.1]
[1758390170338,8.6282204,239.62,239.61,0.1]
[1758390173261,10.0858938,239.62,239.61,0.1]
[1758390175434,13.18765417,239.62,239.61,0.1]
[1758390175856,14.00953945,239.62,239.61,0.1]
[1758390187455,14.01172767,239.62,239.61,0.1]
[1758390188185,45.87172767,239.62,239.61,1e-08]
[1758390188375,45.87172767,239.62,239.51,0.1]
[1758390188376,31.2,239.54,239.51,0.1]
[1758390188581,2.27955868,239.52,239.51,0.1]
[1758390188751,31.2,239.49,239.44,0.71]
[1758390188951,2.27955868,239.47,239.45,0.71]
[1758390189156,5.89168843,239.46,239.37,35.37760904]
[1758390189350,5.89168843,239.46,239.34,5.49955868]
[1758390189351,6.93706607,239.45,239.39,2.27955868]
[1758390189551,6.93706607,239.44,239.39,2.27955868]
[1758390189854,6.93706607,239.43,239.39,2.27955868]
[1758390190054,2.27955868,239.46,239.39,2.27955868]
[1758390190251,12.55992129,239.42,239.35,4.1778372]
[1758390190464,1.04546718,239.41,239.35,17.77343121]
[1758390190755,12.55992129,239.42,239.37,2.27955868]
[1758390190957,1.04547539,239.41,239.37,2.27955868]
[1758390191176,4.1767605,239.42,239.38,0.71]
[1758390191375,1.045529,239.41,239.38,0.71]
[1758390191583,1.04553672,239.4,239.39,0.71]
[1758390192175,4.1767605,239.42,239.39,0.71]
[1758390192375,1.04553672,239.41,239.39,0.71]
[1758390192572,4.17795552,239.4,239.39,0.71]
[1758390195182,4.17795552,239.4,239.39,2.98955868]
[1758390195374,4.17795552,239.4,239.39,16.58515269]
[1758390195755,4.17571732,239.48,239.39,20.76243661]
[1758390195968,1.04539831,239.47,239.43,2.27955868]
[1758390196167,12.55886971,239.46,239.44,0.71]
[1758390196371,4.17571732,239.48,239.39,17.77287793]
[1758390196372,2.27955868,239.53,239.45,2.98955868]
[1758390196580,1.04532774,239.52,239.46,2.98955868]
[1758390196785,12.5562415,239.5,239.47,0.71]
[1758390196996,12.5562415,239.5,239.48,0.71]
[1758390196997,1.04532774,239.49,239.48,0.71]
[1758390197561,4.17616506,239.5,239.48,0.71]
[1758390197982,4.17616506,239.5,239.49,0.71]
[1758390198163,5.22141485,239.5,239.49,0.71]
[1758390199283,1.04524979,239.5,239.49,0.71]
[1758390199475,2.77001085,239.53,239.49,0.71]
[1758390199661,1.04524213,239.52,239.5,0.71]
[1758390199864,1.04524213,239.51,239.5,0.71]
[1758390200368,1.04524213,239.53,239.5,0.71]
[1758390200587,1.04524213,239.52,239.5,0.71]
[1758390200763,1.04524213,239.51,239.5,0.71]
[1758390201275,1.04524213,239.52,239.5,0.71]
[1758390201479,1.04524213,239.51,239.5,0.71]
[1758390201661,1.04524213,239.52,239.5,0.71]
[1758390201860,1.04524213,239.51,239.5,0.71]
[1758390202356,1.04524213,239.52,239.5,0.71]
[1758390202977,1.04524213,239.52,239.51,0.71]
[1758390203186,1.04524213,239.52,239.48,6.45522907]
[1758390203387,1.04524213,239.51,239.49,0.71]
[1758390203582,4.17486425,239.53,239.49,0.71]
[1758390203788,1.04523302,239.52,239.49,0.71]
[1758390204606,1.04523302,239.52,239.47,2.27955868]
[1758390204805,1.04523302,239.52,239.48,0.71]
[1758390206096,1.04523302,239.52,239.48,2.98955868]
[1758390206294,1.04523302,239.52,239.49,0.68]
[1758390206496,1.04523302,239.52,239.48,2.27955868]
[1758390206676,1.04523302,239.52,239.5,0.68]
[1758390208886,5.22025906,239.52,239.5,0.68]
[1758390209203,4.17502604,239.52,239.5,0.68]
[1758390209697,1.72519849,239.51,239.46,0.68]
[1758390209881,0.68,239.5,239.46,0.68]
[1758390210899,4.17553968,239.49,239.46,0.68]
[1758390212106,4.17519101,239.51,239.46,2.95955868]
[1758390212281,4.85519101,239.51,239.46,2.95955868]
[1758390212482,4.85519101,239.51,239.47,0.68]
[1758390213903,0.68,239.5,239.47,0.68]
[1758390215412,4.17553968,239.49,239.47,0.68]
[1758390220302,4.17532559,239.51,239.47,2.27955868]
[1758390220487,1.04522578,239.5,239.48,0.68]
[1758390220829,1.04522578,239.49,239.47,2.95955868]
[1758390221006,4.85532559,239.51,239.47,2.95955868]
[1758390221187,1.04522578,239.5,239.47,2.95955868]
[1758390221388,1.04522578,239.49,239.47,2.95955868]
[1758390221599,4.17466811,239.54,239.48,2.27955868]
[1758390221798,1.04522578,239.53,239.49,2.95955868]
[1758390222089,1.04522578,239.52,239.5,0.68]
[1758390222293,1.04522578,239.51,239.44,4.17641162]
[1758390222501,1.04522578,239.5,239.45,13.59559401]
[1758390222698,2.7745119,239.54,239.45,13.59559401]
[1758390222901,1.04518374,239.53,239.47,13.59559401]
[1758390223206,1.04518374,239.52,239.49,13.59559401]
[1758390223413,2.7745119,239.57,239.5,0.68]
[1758390223703,1.0450868,239.56,239.54,2.27955868]
[1758390223910,1.0450868,239.55,239.54,2.95955868]
[1758390224308,1.0450868,239.55,239.54,2.27955868]
[1758390224892,1.0450868,239.55,239.53,2.27955868]
[1758390225093,1.0450868,239.54,239.53,2.95955868]
[1758390229420,3.8195987,239.54,239.53,2.95955868]
[1758390229613,1.0450868,239.54,239.53,2.95955868]
[1758390230021,3.8195987,239.54,239.53,2.95955868]
[1758390230197,1.0450868,239.54,239.53,2.95955868]
[1758390230598,1.0450868,239.54,239.53,20.72999508]
[1758390232510,1.0450868,239.54,239.53,52.66999508]
[1758390232723,2.7745119,239.58,239.53,52.66999508]
[1758390232916,3.8194611,239.57,239.56,2.27955868]
[1758390233321,2.7745119,239.57,239.56,2.27955868]
[1758390234322,2.7745119,239.57,239.56,2.95955868]
[1758390234713,2.7745119,239.58,239.56,2.95955868]
[1758390234900,0.1,239.59,239.57,0.68]
[1758390235108,2.7817548,239.58,239.57,0.68]
[1758390235322,2.7817548,239.58,239.57,2.95955868]
[1758390235799,2.7817548,239.58,239.57,2.13847963]
[1758390236702,2.7817548,239.58,239.57,1.45847963]
[1758390238633,2.7817548,239.58,239.57,2.12847963]
[1758390239318,2.7817548,239.58,239.57,1.45847963]
[1758390243821,2.7817548,239.58,239.54,17.77026212]
[1758390244025,4.17363993,239.6,239.56,1.45847963]
[1758390244234,3.82762871,239.59,239.56,2.16847963]
[1758390244410,2.78275061,239.58,239.57,0.71]
[1758390245120,2.78275061,239.59,239.57,0.71]
[1758390245310,2.78275061,239.58,239.57,0.71]
[1758390245632,2.78275061,239.59,239.56,1.45847963]
[1758390245936,4.173244,239.63,239.58,2.16847963]
[1758390246110,3.82713281,239.62,239.59,0.71]
[1758390246309,3.82713281,239.61,239.59,0.71]
[1758390246538,3.82713281,239.6,239.58,1.45847963]
[1758390246828,2.78225494,239.59,239.58,0.71]
[1758390247130,2.78225494,239.59,239.58,2.16847963]
[1758390247536,2.78225494,239.59,239.58,6.34245074]
[1758390248318,2.78225494,239.63,239.58,6.34245074]
[1758390248520,3.82709057,239.62,239.61,1.45847963]
[1758390250144,2.78225494,239.62,239.61,1.45847963]
[1758390251843,2.78225494,239.62,239.6,2.16847963]
[1758390252151,2.78225494,239.61,239.6,2.16847963]
[1758390252331,2.78225494,239.61,239.6,1.45847963]
[1758390252841,2.78225494,239.61,239.6,2.16847963]
[1758390257936,2.78225494,239.61,239.6,1.45847963]
[1758390258331,2.78225494,239.61,239.6,2.16847963]
[1758390258757,2.78225494,239.61,239.6,1.45847963]
[1758390260236,2.78225494,239.61,239.6,2.16847963]
[1758390260761,2.78225494,239.61,239.6,1.45847963]
[1758390262638,2.78225494,239.61,239.6,2.16847963]
[1758390263858,2.78225494,239.61,239.6,34.04847963]
[1758390268263,2.78225494,239.61,239.6,2.16847963]
[1758390268442,2.78225494,239.61,239.6,34.04847963]
[1758390269852,2.78225494,239.61,239.6,38.22210233]
[1758390273454,2.78225494,239.61,239.6,51.81769634]
[1758390273856,2.78225494,239.61,239.6,19.93769634]
[1758390274053,2.78225494,239.61,239.6,51.81769634]
[1758390274249,2.78605321,239.67,239.61,13.59559401]
[1758390274442,3.83068721,239.66,239.62,32.55]
[1758390274638,3.83068721,239.65,239.63,0.67]
[1758390274861,8.2627564,239.68,239.64,31.88]
[1758390275166,3.8312454,239.67,239.65,14.26559401]
[1758390275349,3.8312454,239.66,239.65,4.17275192]
[1758390275555,3.8312454,239.66,239.65,51.08682556]
[1758390275966,3.8312454,239.66,239.65,51.75682556]
[1758390276143,0.1,239.69,239.65,51.75682556]
[1758390276348,1.14443019,239.69,239.68,1.45847963]
[1758390276553,3.93098881,239.69,239.68,33.31847963]
[1758390276868,3.93098881,239.69,239.68,1.45847963]
[1758390277178,3.93098881,239.69,239.68,33.31847963]
[1758390279369,2.88655862,239.69,239.68,33.31847963]
[1758390279670,2.88655862,239.69,239.68,33.98847963]
[1758390280681,2.88655862,239.69,239.68,2.12847963]
[1758390280982,2.88655862,239.69,239.68,33.31847963]
[1758390284264,0.1,239.69,239.68,33.31847963]
[1758390285963,0.1,239.69,239.68,33.98847963]
[1758390290778,0.1,239.69,239.68,33.31847963]
[1758390290983,4.97205557,239.69,239.6,4.17346834]
[1758390291177,4.27205557,239.69,239.66,1.45847963]
[1758390291349,0.7,239.68,239.67,31.86]
[1758390291554,16.5931347,239.69,239.67,31.86]
[1758390296577,16.5931347,239.69,239.66,1.45847963]
[1758390297084,7.63089888,239.68,239.65,1.45847963]
[1758390297286,3.45866925,239.67,239.64,31.86]
[1758390297458,0.68,239.66,239.64,31.86]
[1758390297658,0.68,239.65,239.64,31.86]
[1758390298068,12.54783863,239.65,239.64,31.86]
[1758390298962,4.17292605,239.64,239.63,31.86]
[1758390302386,4.17292605,239.64,239.58,13.59559401]
[1758390302594,7.6317256,239.64,239.59,34.83834921]
[1758390302887,7.6317256,239.64,239.6,0.71]
[1758390302888,12.54783863,239.63,239.6,0.71]
[1758390303074,12.54783863,239.63,239.61,31.86]
[1758390304291,12.54783863,239.63,239.62,0.71]
[1758390304784,0.77,239.69,239.62,0.71]
[1758390304986,3.82417392,239.68,239.63,2.27834921]
[1758390305290,12.54783863,239.65,239.64,32.57]
[1758390305478,15.32740622,239.65,239.64,32.57]
[1758390305871,15.32740622,239.65,239.64,31.86]
[1758390306281,15.32740622,239.65,239.63,2.27834921]
[1758390306478,12.54783863,239.65,239.61,2.98834921]
[1758390306679,4.17310019,239.63,239.61,2.98834921]
[1758390306865,4.17310019,239.63,239.62,31.86]
[1758390307372,4.17310019,239.63,239.61,2.27834921]
[1758390307570,8.34620038,239.63,239.59,0.71]
[1758390307768,3.45062727,239.62,239.57,2.27834921]
[1758390307992,0.67,239.61,239.58,31.86]
[1758390308369,2.78050492,239.6,239.58,31.86]
[1758390308584,3.45087538,239.6,239.58,31.86]
[1758390308780,4.1737969,239.59,239.58,31.86]
[1758390309182,6.95451185,239.59,239.57,31.86]
[1758390309381,2.78061036,239.58,239.57,31.86]
[1758390309785,2.78061036,239.58,239.57,32.57]
[1758390311488,16.72478529,239.59,239.57,32.57]
[1758390314702,16.72478529,239.59,239.57,31.86]
[1758390315397,16.72478529,239.59,239.57,32.57]
[1758390316215,16.72478529,239.59,239.57,0.71]
[1758390316394,16.72478529,239.59,239.57,31.86]
[1758390318907,16.72478529,239.59,239.57,32.57]
[1758390319599,4.1737969,239.59,239.57,32.57]
[1758390320512,4.8437969,239.59,239.56,2.27834921]
[1758390320689,0.67,239.58,239.54,0.71]
[1758390320889,2.77910236,239.58,239.55,31.86]
[1758390321113,0.67,239.57,239.55,31.86]
[1758390321617,4.17431958,239.56,239.55,31.86]
[1758390322414,4.17431958,239.56,239.52,0.71]
[1758390322592,4.84431958,239.56,239.53,31.86]
[1758390322989,4.17431958,239.56,239.53,31.86]
[1758390323418,4.17431958,239.56,239.53,32.57]
[1758390323892,10.43579896,239.56,239.53,32.57]
[1758390324089,14.61011854,239.56,239.53,32.57]
[1758390324823,18.78443812,239.56,239.53,32.57]
[1758390327016,18.78443812,239.56,239.53,32.59]
[1758390327210,18.78443812,239.56,239.54,0.66]
[1758390327593,8.34863916,239.56,239.54,0.66]
[1758390327799,8.34863916,239.56,239.53,31.88]
[1758390328119,19.47443812,239.56,239.53,31.88]
[1758390330129,18.78443812,239.56,239.53,31.88]
[1758390331327,19.47443812,239.56,239.53,31.88]
[1758390332922,19.47443812,239.56,239.52,0.66]
[1758390333104,18.78443812,239.56,239.46,6.35694713]
[1758390333315,0.69,239.55,239.48,2.27834921]
[1758390333498,0.69,239.54,239.49,31.88]
[1758390333815,3.46389051,239.54,239.5,0.66]
[1758390334219,12.55519053,239.53,239.5,0.66]
[1758390334830,4.1750167,239.52,239.5,0.66]
[1758390336131,16.73003949,239.53,239.51,0.66]
[1758390340323,16.73003949,239.53,239.49,32.54]
[1758390340522,16.73003949,239.53,239.5,0.66]
[1758390342117,16.73003949,239.53,239.49,31.88]
[1758390342320,4.17519101,239.51,239.49,31.88]
[1758390342620,4.17519101,239.51,239.48,34.81834921]
[1758390344130,4.17519101,239.51,239.49,0.66]
[1758390344343,16.7302042,239.53,239.5,0.66]
[1758390344511,4.17501367,239.53,239.5,0.66]
[1758390344915,16.73020419,239.53,239.5,0.66]
[1758390346036,12.55519052,239.53,239.5,0.66]
[1758390346236,0.69,239.58,239.51,0.66]
[1758390346417,3.82111736,239.57,239.52,2.27834921]
[1758390346619,16.37525709,239.56,239.53,0.66]
[1758390346821,2.77602746,239.55,239.52,2.27834921]
[1758390347025,2.77602746,239.55,239.54,0.66]
[1758390347243,0.69,239.58,239.54,0.66]
[1758390347244,2.77602746,239.57,239.54,0.66]
[1758390347444,20.54960005,239.56,239.52,2.27834921]
[1758390347738,3.8211172,239.55,239.53,0.66]
[1758390347917,2.77602746,239.55,239.53,0.66]
[1758390348416,6.95132184,239.55,239.53,0.66]
[1758390349346,2.77602746,239.54,239.53,0.66]
[1758390350063,2.77602746,239.54,239.52,2.93834921]
[1758390350421,2.77602746,239.54,239.5,0.66]
[1758390350728,0.69,239.53,239.5,31.88]
[1758390350930,13.2115658,239.54,239.5,32.54]
[1758390351131,2.77602746,239.53,239.5,32.54]
[1758390351514,2.77602746,239.53,239.51,0.66]
[1758390352124,2.77602746,239.52,239.51,0.66]
[1758390352352,2.77602746,239.53,239.51,0.66]
[1758390352539,2.77602746,239.52,239.51,0.66]
[1758390352730,2.77602746,239.53,239.51,0.66]
[1758390352925,2.77602746,239.52,239.51,0.66]
[1758390353240,2.77602746,239.53,239.51,0.66]
[1758390353537,2.77602746,239.52,239.51,0.66]
[1758390353719,2.77602746,239.53,239.51,0.66]
[1758390354045,2.77602746,239.52,239.51,0.66]
[1758390354220,2.77602746,239.53,239.51,0.66]
[1758390354520,2.77602746,239.52,239.51,0.66]
[1758390354814,2.77602746,239.53,239.51,0.66]
[1758390355015,2.77602746,239.52,239.51,0.66]
[1758390360128,4.17398004,239.58,239.51,4.83519101]
[1758390360330,3.82889634,239.57,239.53,1.45955088]
[1758390360631,3.82889634,239.56,239.54,0.72]
[1758390360824,3.82889634,239.55,239.54,0.72]
[1758390362856,3.82889634,239.55,239.53,33.33955088]
[1758390363047,2.783848,239.54,239.53,34.02955088]
[1758390363228,2.783848,239.54,239.53,31.88]
[1758390363433,3.82885608,239.54,239.51,6.32470446]
[1758390363648,2.783848,239.53,239.52,31.88]
[1758390364052,2.783848,239.53,239.52,32.57]
[1758390365557,2.783848,239.53,239.52,34.02955088]
[1758390367255,2.783848,239.53,239.52,38.20456758]
[1758390379042,2.783848,239.53,239.52,34.02955088]
[1758390379374,2.783848,239.53,239.52,33.31955088]
[1758390380856,2.783848,239.53,239.52,1.45955088]
[1758390381054,2.783848,239.53,239.52,33.31955088]
[1758390383977,2.783848,239.53,239.52,34.00955088]
[1758390384584,2.783848,239.53,239.52,33.31955088]
[1758390386180,2.783848,239.53,239.52,33.98955088]
[1758390386377,2.783848,239.53,239.52,33.31955088]
[1758390387382,6.95869039,239.53,239.52,31.86]
[1758390387570,8.66371806,239.53,239.52,33.31955088]
[1758390390674,4.48887567,239.53,239.52,33.31955088]
[1758390391071,4.48887567,239.53,239.48,0.67]
[1758390391072,8.66371806,239.53,239.51,1.45955088]
[1758390391393,4.48887567,239.52,239.51,33.31955088]
[1758390391686,8.66389237,239.52,239.51,33.31955088]
[1758390392687,3.82887567,239.52,239.51,33.98955088]
[1758390392891,2.783848,239.52,239.51,33.98955088]
[1758390393680,2.783848,239.52,239.51,38.16474189]
[1758390394074,6.95888018,239.52,239.49,0.67]
[1758390394387,6.95888018,239.52,239.5,33.31955088]
[1758390394388,3.82897982,239.51,239.5,33.31955088]
[1758390394764,8.00417083,239.51,239.5,33.31955088]
[1758390398182,8.00417083,239.51,239.5,33.98955088]
[1758390399177,8.00417083,239.51,239.5,33.31955088]
[1758390400705,8.00417083,239.51,239.5,1.45955088]
[1758390400872,8.00417083,239.51,239.5,33.31955088]
[1758390401990,8.00417841,239.51,239.5,33.31955088]
[1758390402294,6.95903901,239.51,239.5,1.45955088]
[1758390402484,6.95903901,239.51,239.5,33.31955088]
[1758390402880,8.66417841,239.51,239.5,31.86]
[1758390403875,8.66417841,239.51,239.49,33.31955088]
[1758390404083,8.00435274,239.5,239.49,33.31955088]
[1758390404394,8.00435274,239.5,239.49,1.45955088]
[1758390404583,8.00435274,239.5,239.47,33.31955088]
[1758390404584,8.66435274,239.5,239.47,33.31955088]
[1758390404766,4.4889874,239.49,239.47,33.31955088]
[1758390404970,3.8289874,239.48,239.47,33.31955088]
[1758390405180,3.8289874,239.48,239.45,0.67]
[1758390405486,3.8289874,239.48,239.43,13.59559401]
[1758390405487,3.82918705,239.47,239.46,33.31955088]
[1758390406066,8.00507547,239.47,239.46,33.31955088]
[1758390406469,6.95973642,239.47,239.46,33.31955088]
[1758390406667,2.783848,239.47,239.46,33.31955088]
[1758390406869,2.783848,239.47,239.46,47.58514489]
[1758390407070,2.783848,239.48,239.46,47.58514489]
[1758390407267,12.55729265,239.49,239.47,2.12955088]
[1758390407471,2.78221426,239.48,239.47,1.45955088]
[1758390407697,2.78221426,239.48,239.47,33.31955088]
[1758390407895,2.78221426,239.52,239.47,33.31955088]
[1758390408192,3.82748283,239.51,239.48,0.67]
[1758390408396,3.82748283,239.5,239.49,31.86]
[1758390408582,3.82748283,239.5,239.49,32.53]
[1758390409886,3.82748283,239.5,239.49,33.98955088]
[1758390414113,3.82748283,239.5,239.49,32.53]
[1758390414280,3.82748283,239.5,239.49,33.31955088]
[1758390414485,3.82748283,239.5,239.49,33.98955088]
[1758390416187,3.82748283,239.5,239.49,47.58514489]
[1758390416188,2.78221426,239.5,239.49,47.58514489]
[1758390416388,2.78221426,239.55,239.5,13.59559401]
[1758390416695,2.78221426,239.54,239.51,32.52]
[1758390416898,2.78221426,239.53,239.52,0.66]
[1758390417685,2.78221426,239.53,239.52,2.11955088]
[1758390419805,2.78221426,239.53,239.52,2.93945705]
[1758390420411,2.78221426,239.53,239.52,7.11447375]
[1758390420603,2.78221426,239.57,239.52,7.11447375]
[1758390420816,2.78221426,239.56,239.53,46.11559401]
[1758390421016,4.17363979,239.6,239.54,4.83466811]
[1758390421205,2.7822871,239.59,239.55,32.52]
[1758390421515,2.7822871,239.58,239.56,0.66]
[1758390421709,2.7822871,239.57,239.56,0.66]
[1758390421911,2.7822871,239.57,239.56,34.79945705]
[1758390424590,2.7822871,239.57,239.56,34.13945705]
[1758390426218,7.61643244,239.57,239.56,34.13945705]
[1758390426420,7.61643244,239.57,239.54,2.27945705]
[1758390426592,3.4422871,239.56,239.54,31.86]
[1758390426792,3.4422871,239.55,239.54,31.86]
[1758390427418,7.61678094,239.55,239.54,31.86]
[1758390428917,2.7822871,239.55,239.54,2.27945705]
[1758390429113,2.7822871,239.55,239.54,2.95945705]
[1758390429514,2.7822871,239.55,239.54,2.27945705]
[1758390430926,2.7822871,239.55,239.54,34.81945705]
[1758390431221,2.7822871,239.57,239.54,34.81945705]
[1758390431418,2.7822871,239.56,239.55,0.68]
[1758390432517,2.7822871,239.56,239.55,2.27945705]
[1758390435322,2.7822871,239.56,239.55,2.95945705]
[1758390436925,4.17415036,239.6,239.55,2.95945705]
[1758390437132,2.7822871,239.61,239.54,31.86]
[1758390437133,4.17344852,239.61,239.59,2.27945705]
[1758390437315,2.78347251,239.6,239.59,2.27945705]
[1758390438421,6.95709521,239.6,239.59,2.27945705]
[1758390438630,7.61709521,239.6,239.59,2.27945705]
[1758390438928,6.95709521,239.6,239.59,2.27945705]
[1758390442616,6.95709521,239.6,239.58,2.27945705]
[1758390442800,2.78347251,239.59,239.58,2.27945705]
[1758390443428,2.78347251,239.59,239.58,2.95945705]
[1758390447614,2.78347251,239.62,239.58,2.95945705]
[1758390447814,2.78347251,239.61,239.59,0.65]
[1758390448134,2.78208615,239.63,239.6,2.92945705]
[1758390448320,2.78193267,239.64,239.62,2.27945705]
[1758390448511,2.78193267,239.63,239.62,2.27945705]
[1758390448711,2.78193267,239.64,239.62,2.27945705]
[1758390448913,2.78193267,239.63,239.62,2.27945705]
[1758390449134,2.78193267,239.64,239.62,2.27945705]
[1758390449327,2.78193267,239.63,239.62,2.27945705]
[1758390450735,6.95503286,239.63,239.62,2.27945705]
[1758390451131,4.84310019,239.63,239.56,0.65]
[1758390451335,2.78193267,239.62,239.59,2.27945705]
[1758390451528,3.45193267,239.62,239.59,2.27945705]
[1758390452733,6.95538119,239.61,239.58,2.27945705]
[1758390452934,6.95538119,239.61,239.45,20.88075796]
[1758390452935,3.45193267,239.6,239.54,2.27945705]
[1758390453119,3.45193267,239.59,239.54,2.27945705]
[1758390453325,3.45193267,239.58,239.54,2.27945705]
[1758390453525,0.67,239.58,239.54,2.27945705]
[1758390454136,3.45193267,239.58,239.54,2.92945705]
[1758390454342,6.95607801,239.57,239.54,2.92945705]
[1758390454511,4.17414534,239.57,239.54,2.92945705]
[1758390455339,6.95666121,239.57,239.55,2.27945705]
[1758390455538,4.17414534,239.57,239.55,2.27945705]
[1758390455837,4.17414534,239.57,239.55,2.92945705]
[1758390456055,6.9571104,239.57,239.55,2.92945705]
[1758390456214,4.17414534,239.57,239.55,2.92945705]
[1758390456714,6.95768016,239.57,239.55,2.92945705]
[1758390456915,6.9578544,239.56,239.55,2.92945705]
[1758390457216,4.17431958,239.56,239.55,2.27945705]
[1758390457746,6.9578544,239.56,239.54,2.27945705]
[1758390457951,4.84431958,239.56,239.54,2.27945705]
[1758390458129,0.67,239.56,239.52,0.65]
[1758390458334,3.45317063,239.55,239.52,2.27945705]
[1758390458547,2.78317063,239.54,239.52,2.27945705]
[1758390459249,2.78317063,239.53,239.52,2.27945705]
[1758390459431,6.95801302,239.53,239.52,2.27945705]
[1758390459944,6.95801302,239.53,239.51,2.27945705]
[1758390460147,2.78317063,239.52,239.5,2.27945705]
[1758390460335,2.78317063,239.51,239.5,2.27945705]
[1758390460646,2.78317063,239.52,239.5,2.27945705]
[1758390460831,2.78317063,239.51,239.48,0.65]
[1758390461032,3.45317063,239.52,239.5,2.27945705]
[1758390461351,2.78317063,239.51,239.5,2.27945705]
[1758390461549,4.17519101,239.51,239.5,2.27945705]
[1758390461752,6.95836164,239.51,239.5,2.27945705]
[1758390461928,6.95836164,239.51,239.48,0.65]
[1758390462130,4.17519101,239.51,239.48,0.65]
[1758390462648,6.9600796,239.51,239.47,34.13945705]
[1758390462837,4.17519101,239.51,239.47,34.78945705]
[1758390463037,6.96050319,239.51,239.48,0.65]
[1758390464753,14.61194838,239.53,239.48,0.65]
[1758390464951,2.78490003,239.52,239.48,0.65]
[1758390465133,2.78490003,239.51,239.48,0.65]
[1758390465432,2.78490003,239.52,239.48,0.65]
[1758390465753,2.78490003,239.51,239.48,0.65]
[1758390466156,4.17536534,239.5,239.48,0.65]
[1758390466745,4.17536534,239.5,239.47,2.27945705]